Cogmind - Beta 11 X8 @@@ ROGUE MODE // 2021.11.07 @ 02:04:54 Player: Runia Result: Self-destructed Performance ------------- Evolutions (2) 1000 Regions Visited (5) 1000 Robots Destroyed (138) 690 Value Destroyed (3830) 3830 Prototype IDs (11) 220 Alien Tech Used (0) 0 Bonus (-363) -363 TOTAL SCORE: 6377 Bonus ------- High Alert Combat Kills 510 Follower Combat Kills 50 Friendly Fire -923 Cogmind --------- Core Integrity 191/550 Matter 25/300 Energy 140/140 System Corruption 0% Temperature Cool (18) Movement Treading (160) Location -8/Materials Parts ------- > --- POWER (1) -------- Light Deuterium Engine > --- PROPULSION (3) --- Light Treads Light Treads Light Treads > --- UTILITY (4) ------ High-capacity Storage Unit Machine Analyzer > --- WEAPON (3) ------- Scythe > --- INVENTORY (20) --- Light Deuterium Engine Coolant Injector Coolant Injector Coolant Injector Coolant Injector Experimental Sensor Array Improved Terrain Scan Processor Reactive Plating Drone Bay (2/2) Improved Medium Laser Improved Assault Rifle Improved Assault Rifle Grenade Launcher Grenade Launcher YI-UF0's Doublenader Plasma Cutter Scythe Peak State ------------ > --- POWER ------------ Light Angular Momentum Engine > --- PROPULSION ------- Light Treads Improved Treads Armored Treads > --- UTILITY ---------- High-capacity Storage Unit Machine Analyzer Hardened Medium Armor Plating Hardened Medium Armor Plating > --- WEAPON ----------- Autogun Improved Assault Rifle Scythe > --- INVENTORY -------- Cooled Ion Engine Light Treads Light Treads Light Treads Experimental Sensor Array Improved Light Armor Plating Drone Bay Electrolaser Improved Assault Rifle Improved Assault Rifle Improved Assault Rifle Improved Assault Rifle Improved Assault Rifle Enhanced Autogun Grenade Launcher Grenade Launcher YI-UF0's Doublenader Plasma Cutter Mining Claw Scythe [Rating: 34] Favorites ----------- Power Improved Ion Engine Engine Improved Ion Engine Propulsion Light Treads Treads Light Treads Leg Aluminum Leg Wheel Armored Wheel Utility Large Storage Unit Device Advanced Heat Sink Storage Large Storage Unit Processor Machine Analyzer Protection Hardened Medium Armor Plating Weapon Autogun Energy Gun Medium Laser Energy Cannon Advanced Beam Cannon Ballistic Gun Autogun Launcher YI-UF0's Doublenader Slashing Weapon Scythe Build | -11 -10 -10 -9 -9 -8 ------- Run | Scr Mat Min Mat Sto Mat Slots Evolved 4 | . . . 2 . 2 Power . | . . . . . . Propulsion 1 | . . . 1 . . Utility 2 | . . . 1 . 1 Weapon 1 | . . . . . 1 Parts Attached 129 | 2 18 11 16 30 52 Power 11 | . 1 2 3 2 3 Engine 11 | . 1 2 3 2 3 Core . | . . . . . . Reactor . | . . . . . . Propulsion 34 | 2 4 3 4 7 14 Treads 30 | 2 3 3 3 7 12 Leg . | . . . . . . Wheel 4 | . 1 . 1 . 2 Hover . | . . . . . . Flight . | . . . . . . Utility 17 | . 3 . 2 5 7 Device 2 | . . . 1 1 . Storage 2 | . 1 . . . 1 Processor 2 | . 1 . . . 1 Hackware . | . . . . . . Protection 11 | . 1 . 1 4 5 Artifact . | . . . . . . Weapon 67 | . 10 6 7 16 28 Energy Gun 1 | . . . . 1 . Energy Cannon 1 | . . . . 1 . Ballistic Gun 37 | . 6 3 5 9 14 Ballistic Cannon . | . . . . . . Launcher 21 | . 4 3 2 3 9 Special Weapon . | . . . . . . Impact Weapon . | . . . . . . Slashing Weapon 7 | . . . . 2 5 Piercing Weapon . | . . . . . . Special Melee Weapon . | . . . . . . Unidentified Prototypes 7 | . . 1 . 5 1 Parts Lost 21 | . . 2 3 3 13 Power 2 | . . 1 . . 1 Propulsion 5 | . . 1 . 1 3 Utility 8 | . . . 2 2 4 Weapon 6 | . . . 1 . 5 Highest Loss Streak 6 | . . 2 2 2 6 Average Slot Usage (%) 95 | . 88 98 87 97 97 Engine 11 | . 14 14 11 11 8 Treads 25 | . 26 16 28 32 22 Wheel 3 | . 1 11 3 . 3 Device 3 | . . . 7 9 . Storage 11 | . 14 14 11 11 9 Processor 4 | . 5 . . . 9 Protection 11 | . . 14 3 10 17 Ballistic Gun 22 | . 22 26 21 20 22 Slashing Weapon 1 | . . . . . 4 Naked Turns . | . . . . . . Heaviest Build 74 | 11 31 40 35 41 74 Greatest Support 63 | 40 40 40 60 60 63 Greatest Overweight (x) 7 | . 2 3 2 . 7 Average Overweight (x) 1 | . . 1 . . 3 Largest Inventory Capacity 20 | 8 15 15 15 15 20 Average Capacity 16 | 8 13 15 15 15 19 Most Carried 20 | 5 14 15 15 15 20 Average Carried 14 | 3 9 13 12 14 17 Final Capacity 20 | 8 15 15 15 15 20 Final Carried 17 | 2 13 13 13 14 17 Class Distribution -------------------- 45% | Scavenger-Mutant 37% | Mutant 11% | Tank 5% | Scavenger-Tank Dominant Class ---------------- Mutant | -10/Materials Mutant | -10/Mines Scavenger-Mutant | -9/Materials Scavenger-Mutant | -9/Storage Scavenger-Mutant | -8/Materials Resources | -11 -10 -10 -9 -9 -8 ----------- Run | Scr Mat Min Mat Sto Mat Matter Collected 3365 | 200 423 206 210 1153 1173 Remotely . | . . . . . . Salvage Created 4824 | . 683 514 215 1736 1676 Parts 299 | . 56 27 17 99 100 Haulers Intercepted 11 | . 2 . . 6 3 Recyclers Shooed 3 | . 1 . . 1 1 Parts Field Recycled . | . . . . . . Retrieved Matter . | . . . . . . Parts Self-Destructed . | . . . . . . Prevented . | . . . . . . Kills | -11 -10 -10 -9 -9 -8 ------- Run | Scr Mat Min Mat Sto Mat Combat Hostiles Destroyed 103 | . 14 11 7 29 42 Melee 5 | . . . . . 5 Guns 62 | . 8 8 4 19 23 AOE 36 | . 6 3 3 10 14 Classes Destroyed 13 | . 8 2 1 1 1 Worker 5 | . . 1 . 1 3 Builder 9 | . 3 . . 1 5 Hauler 11 | . 2 . . 6 3 Recycler 5 | . 2 . . 3 . Mechanic 3 | . 1 . . 2 . Operator 1 | . 1 . . . . Watcher 6 | . 2 . 1 2 1 Swarmer 18 | . 3 3 2 4 6 Grunt 56 | . 11 6 2 9 28 Brawler 1 | . . . . . 1 Duelist 6 | . . . 1 4 1 Protector 1 | . . . . 1 . Sentry 21 | . . 2 2 11 6 Best Kill Streak 9 | . 6 4 2 9 7 Combat Bots Only 8 | . 3 4 2 8 6 Max Kills in Single Turn 4 | . 2 2 1 4 3 Gunslinging 1 | . . 1 . 1 . Exploded 4 | . 1 2 1 4 3 Melee 1 | . . . . . 1 Uniques/NPCs Destroyed 1 | . . 1 . . . YI-UF0 (-10/Mines) Combat | -11 -10 -10 -9 -9 -8 -------- Run | Scr Mat Min Mat Sto Mat Damage Taken 5842 | . 416 588 301 881 3656 Core 696 | . 93 107 21 116 359 Absorbed by Shields . | . . . . . . Core Remaining (%) 61 | 100 . 20 . 65 . Volleys Fired 326 | . 70 40 25 96 95 Largest 3 | . 2 2 2 2 3 Hottest 70 | . 70 40 70 70 70 Shots Fired 665 | . 126 78 46 187 228 Gun 615 | . 113 76 42 182 202 Cannon . | . . . . . . Launcher 50 | . 13 2 4 5 26 Special . | . . . . . . Kinetic 605 | . 103 76 42 182 202 Thermal 10 | . 10 . . . . Explosive 50 | . 13 2 4 5 26 Electromagnetic . | . . . . . . Robot Hit Streak 22 | . 22 19 12 15 14 Robot Miss Streak 4 | . 3 3 3 4 4 Penetration Max . | . . . . . . Secondary Targets 12 | . 2 2 . 2 6 Max Gunslinging Chain 1 | . 1 1 . 1 1 Shots Hit Robots 475 | . 85 55 33 126 176 Core Hits 297 | . 57 36 15 72 117 Critical Kills 1 | . . . . . 1 Critical Parts Destroyed 4 | . 1 . 1 . 2 Critical Strikes 7 | . 1 . 1 . 5 Destroy 5 | . 1 . 1 . 3 Sever 2 | . . . . . 2 Melee Attacks 47 | . . . . 5 42 Impact . | . . . . . . Slashing 47 | . . . . 5 42 Piercing . | . . . . . . Sneak Attacks 4 | . . . . 1 3 Combat Hostiles . | . . . . . . Follow-up Attacks . | . . . . . . Damage Inflicted 11186 | . 1511 593 611 3018 5453 Guns 5578 | . 709 433 325 1952 2159 Cannons . | . . . . . . Explosions 4511 | . 802 145 286 993 2285 Melee 1082 | . . . . 73 1009 Ramming 15 | . . 15 . . . Kinetic 5491 | . 622 433 325 1952 2159 Thermal 87 | . 87 . . . . Explosive 4511 | . 802 145 286 993 2285 Electromagnetic . | . . . . . . Impact . | . . . . . . Slashing 1082 | . . . . 73 1009 Piercing . | . . . . . . Highest Corruption . | . . . . . . Average Corruption . | . . . . . . Corruption Purged . | . . . . . . Overload Shots . | . . . . . . Overflow Damage 130 | . . . 8 17 105 Projectiles . | . . . . . . Explosions 64 | . . . 8 4 52 Melee 66 | . . . . 13 53 Knockbacks . | . . . . . . Impact . | . . . . . . Kinetic . | . . . . . . Secondary . | . . . . . . Self-Inflicted Damage 216 | . 34 . . 8 174 Shots 10 | . 1 . . 1 8 Rammed 6 | . . 6 . . . Targets Rammed 6 | . . 6 . . . Kicked . | . . . . . . Crushed . | . . . . . . Highest Temperature 279 | . 154 102 76 29 279 Average Temperature 51 | . 22 30 28 4 89 Received Heat Transfer 2766 | . 186 261 30 345 1944 Siege Activations . | . . . . . . Robots Corrupted . | . . . . . . Combat Hostiles . | . . . . . . Parts Fried . | . . . . . . Impact Corruptions . | . . . . . . Robots Melted . | . . . . . . Combat Hostiles . | . . . . . . Parts Melted . | . . . . . . Heat Transferred 259 | . 259 . . . . Parts Sabotaged . | . . . . . . Parts Stolen . | . . . . . . Parts Stripped . | . . . . . . Power Chain Reactions . | . . . . . . Missiles Intercepted . | . . . . . . Alert | -11 -10 -10 -9 -9 -8 ------- Run | Scr Mat Min Mat Sto Mat Peak Influence 1028 | . 322 242 247 404 1028 Initial 170 | . . 67 . 26 170 Average 295 | . 163 130 107 232 501 Maximum Alert Level 3 | . 1 1 1 2 3 Low Security (%) 38 | 100 77 65 77 36 2 Level 1 36 | . 22 34 22 57 32 Level 2 21 | . . . . 5 55 Level 3 3 | . . . . . 9 Level 4 . | . . . . . . Level 5 . | . . . . . . High Security . | . . . . . . Max Security . | . . . . . . Squads Dispatched 18 | . 4 . 1 2 11 Investigation 5 | . 2 . 1 . 2 Extermination . | . . . . . . Reinforcement 9 | . 2 . . . 7 Assault 2 | . . . . 2 . Garrison 2 | . . . . . 2 Intercept . | . . . . . . Construction Impeded 4 | . . . . . 4 Haulers Reinforced . | . . . . . . Active Scanning Responses . | . . . . . . Cargo Convoy Interrupts . | . . . . . . Stealth | -11 -10 -10 -9 -9 -8 --------- Run | Scr Mat Min Mat Sto Mat Distress Signals 12 | . 5 . . 3 4 Communications Jammed . | . . . . . . Distress Signals . | . . . . . . Times Spotted 152 | . 24 10 11 34 73 Peak Tracking Total 9 | . 6 3 3 9 9 Tactical Retreats 7 | . . . . . 7 Traps | -11 -10 -10 -9 -9 -8 ------- Run | Scr Mat Min Mat Sto Mat Traps Triggered 4 | . 1 . . . 3 Indirectly . | . . . . . . Trap Hack Attempts . | . . . . . . Triggered . | . . . . . . Disarmed 3 | . 3 . . . . Reprogrammed . | . . . . . . Reused . | . . . . . . Traps Extracted . | . . . . . . Installed . | . . . . . . Triggered . | . . . . . . Machines | -11 -10 -10 -9 -9 -8 ---------- Run | Scr Mat Min Mat Sto Mat Machines Disabled 3 | . . . . 1 2 Max in Single Turn 1 | . . . . 1 1 Machines Sabotaged . | . . . . . . Garrisons Compromised . | . . . . . . Overloaded Fab Kills . | . . . . . . Hacking | -11 -10 -10 -9 -9 -8 --------- Run | Scr Mat Min Mat Sto Mat Machines Accessed 25 | . 9 . 2 10 4 Terminals 18 | . 6 . 1 9 2 Fabricators . | . . . . . . Repair Stations 3 | . 1 . . . 2 Recycling Units 4 | . 2 . 1 1 . Scanalyzers . | . . . . . . Garrison Access . | . . . . . . Total Hacks 97 | . 27 . 6 37 27 Successful 62 | . 16 . 3 22 21 Failed 35 | . 11 . 3 15 6 Catastrophic 5 | . 2 . 1 2 . Database Lockouts . | . . . . . . Manual 27 | . 8 . 1 13 5 Terminals 70 | . 20 . 5 35 10 Fabricators . | . . . . . . Repair Stations 22 | . 5 . . . 17 Recycling Units 5 | . 2 . 1 2 . Scanalyzers . | . . . . . . Garrison Access . | . . . . . . Terminal Hacks 32 | . 9 . 2 17 4 Part Schematic 4 | . 1 . . 3 . Robot Analysis 2 | . 1 . . 1 . Prototype ID Bank 2 | . . . 1 . 1 Open Door 2 | . . . . 2 . Level Access Points 1 | . 1 . . . . Branch Access Points 2 | . . . 1 1 . Terminal Index 3 | . 1 . . 1 1 Alert Level 1 | . . . . 1 . Unreport Threat 1 | . . . . 1 . Locate Traps 2 | . 1 . . 1 . Disarm Traps 2 | . 2 . . . . Hauler Manifests 4 | . 1 . . 2 1 Registered Components 1 | . . . . 1 . Zone Layout 5 | . 1 . . 3 1 Fabricator Hacks . | . . . . . . Repair Station Hacks 20 | . 4 . . . 16 Scan Component 10 | . 2 . . . 8 Repair 10 | . 2 . . . 8 Recycling Unit Hacks 1 | . . . . 1 . Retrieve Components 1 | . . . . 1 . Scanalyzer . | . . . . . . Garrison Access Hacks . | . . . . . . Unauthorized Hacks 9 | . 3 . 1 4 1 Terminals 6 | . 1 . . 4 1 Track 1 | . 1 . . . . Botnet 4 | . . . . 4 . Operators 1 | . . . . . 1 Fabricators . | . . . . . . Repair Stations . | . . . . . . Recycling Units 3 | . 2 . 1 . . Tunnel 3 | . 2 . 1 . . Scanalyzers . | . . . . . . Garrison Access . | . . . . . . Data Cores Recovered . | . . . . . . Used . | . . . . . . Hacking Detections 20 | . 7 . 1 8 4 Full Trace Events . | . . . . . . Feedback Events . | . . . . . . Feedback Blocked . | . . . . . . Robot Schematics Acquired . | . . . . . . Robots Built . | . . . . . . Authchips . | . . . . . . Time . | . . . . . . Total Robot Build Rating . | . . . . . . Part Schematics Acquired 4 | . 1 . . 3 . Parts Built . | . . . . . . Authchips . | . . . . . . Time . | . . . . . . Total Part Build Rating . | . . . . . . Parts Repaired 10 | . 2 . . . 8 Time 327 | . 52 . . . 275 Parts Recycled . | . . . . . . Recycled Matter . | . . . . . . Retrieved Matter . | . . . . . . Retrieved Components 10 | . . . . 10 . Parts Scanalyzed . | . . . . . . Part Schematics Acquired . | . . . . . . Parts Damaged . | . . . . . . Bothacking | -11 -10 -10 -9 -9 -8 ------------ Run | Scr Mat Min Mat Sto Mat Used RIF Installer . | . . . . . . Robots Hacked . | . . . . . . Non-combat . | . . . . . . Combat . | . . . . . . Robot Hacks Applied . | . . . . . . Relay Couplers Released . | . . . . . . Robots Rewired . | . . . . . . Allies Hacked . | . . . . . . Hacks Repelled . | . . . . . . Allies | -11 -10 -10 -9 -9 -8 -------- Run | Scr Mat Min Mat Sto Mat Total Allies 2 | . . . . 2 . Largest Group 2 | . . . . 2 . Highest-Rated Group 62 | . . . . 62 . Highest-Rated Ally 31 | . . . . 31 . Total Orders . | . . . . . . Ally Attacks 27 | . . . . 27 . Total Damage 310 | . . . . 310 . Kills 2 | . . . . 2 . Allies Corrupted . | . . . . . . Allies Melted . | . . . . . . Intel | -11 -10 -10 -9 -9 -8 ------- Run | Scr Mat Min Mat Sto Mat Robot Analysis Total 2 | . 1 . . 1 . Derelict Logs Recovered 1 | . . 1 . . . Drone Launches . | . . . . . . Drone Recoveries . | . . . . . . Exploration | -11 -10 -10 -9 -9 -8 ------------- Run | Scr Mat Min Mat Sto Mat Turns Passed 6318 | 5 982 865 588 1547 2331 Spaces Moved 2674 | 1 456 533 313 677 694 Core . | . . . . . . Treads 1815 | 1 394 129 218 677 396 Legs . | . . . . . . Wheels 859 | . 62 404 95 . 298 Hover . | . . . . . . Flight . | . . . . . . Fastest Speed 120 | 160 120 120 120 160 160 Average Speed 165 | 160 154 134 147 160 208 Slowest Speed 245 | 160 240 240 160 160 245 Overloaded Moves . | . . . . . . Propulsion Burnouts . | . . . . . . Robots Hopped . | . . . . . . Cave-ins Triggered . | . . . . . . Exploration Rate (%) 56 | 2 83 87 28 90 50 Regions Visited 5 Branch Regions 2 Pre-discovered Areas 3 | . 2 . 1 . . Known Exits Taken 3 | . . 1 1 1 . Unknown Exits Taken 2 | 1 1 . . . . Scrap Searched 2 | . . 2 . . . Spaces Dug 26 | . 4 . . 9 13 Terrain Destroyed 325 | . 57 12 46 45 165 Melee 5 | . . . . . 5 Projectile . | . . . . . . AOE 320 | . 57 12 46 45 160 Terrain Rammed . | . . . . . . Walls Destroyed . | . . . . . . Machines Disabled . | . . . . . . Actions | -11 -10 -10 -9 -9 -8 --------- Run | Scr Mat Min Mat Sto Mat Total 3943 | 6 620 611 402 963 1341 Wait 628 | . 58 11 28 117 414 Move 2669 | . 455 532 312 676 694 Hop . | . . . . . . Pick Up 65 | . 13 6 10 14 22 Fast Attach 29 | . 6 . . 9 14 Attach 18 | 2 . 3 5 . 8 Detach 1 | . . . . . 1 Swap 83 | . 12 8 11 21 31 Drop 71 | 4 6 5 11 25 20 Fire 326 | . 70 40 25 96 95 Melee 47 | . . . . 5 42 Ram . | . . . . . . Kick . | . . . . . . Crush 6 | . . 6 . . . Escape Stasis . | . . . . . . Rewire . | . . . . . . Trap . | . . . . . . Miscellaneous . | . . . . . . Route ------- -11/Scrapyard -10/Materials (discovered 4 exits: *Mat x3 / [*Min]) -10/Mines (discovered 3 exits: *Mat x2 / [*Exi]) -9/Materials (discovered 5 exits: Mat / Min x2 / *Sto x2) -9/Storage (discovered 2 exits: *Mat / Rec) -8/Materials (discovered 2 exits: [*Fac x2]) History --------- Turn | Location | Event 6 | -11/Scrapyard | Discovered new exit (range 0) 6 | -11/Scrapyard | Entered Materials 250 | -10/Materials | Identified exit to Materials 302 | -10/Materials | Build established: Mutant 839 | -10/Materials | Repaired Grenade Launcher 866 | -10/Materials | Repaired Lgt. Assault Rifle 950 | -10/Materials | Discovered new exit (range 16) 988 | -10/Materials | Entered Mines 1263 | -10/Mines | YI-UF0 nonchalantly dropped a Grenade Launcher on the ground 1374 | -10/Mines | Destroyed YI-UF0 1389 | -10/Mines | Found Prototype Launcher 1390 | -10/Mines | Identified YI-UF0's Doublenader 1444 | -10/Mines | Discovered exit to Materials (range 15) 1452 | -10/Mines | Found a damaged Exp. Sensor Array with a note attached 1455 | -10/Mines | Found Prototype Device 1597 | -10/Mines | Discovered exit to Materials (range 5) 1604 | -10/Mines | Learned location of 2 exits from Materials 1609 | -10/Mines | Core integrity fell below 50% 1800 | -10/Mines | Deemed a non-threat by the Exiles lab entrance 1802 | -10/Mines | Discovered new exit (range 5) 1853 | -10/Mines | Entered Materials 1853 | -9/Materials | Evolved 2 slots: Propulsion x1, Utility x1 1854 | -9/Materials | Identified exit to Materials 1854 | -9/Materials | Identified exit to Mines 1993 | -9/Materials | Discovered new exit (range 11) 2141 | -9/Materials | Identified exit to Storage 2390 | -9/Materials | Build established: Scavenger-Mutant 2441 | -9/Materials | Entered Storage 2694 | -9/Storage | Met a pair of Derelict thieves 2848 | -9/Storage | Destroyed 8 combat bots 3639 | -9/Storage | Identified exit to Recycling 3880 | -9/Storage | Discovered exit to Materials (range 16) 3988 | -9/Storage | Entered Materials 3988 | -8/Materials | Evolved 2 slots: Utility x1, Weapon x1 4298 | -8/Materials | Build established: Scavenger-Tank 4390 | -8/Materials | Lost 4 parts (1n2u1w) 4481 | -8/Materials | Repaired Hrd. Medium Armor Plating 4508 | -8/Materials | Repaired Lgt. Treads 4556 | -8/Materials | Repaired Lgt. Treads 4608 | -8/Materials | Repaired Imp. Assault Rifle 4635 | -8/Materials | Repaired Wheel 4656 | -8/Materials | Build established: Scavenger-Mutant 4668 | -8/Materials | Repaired Autogun 4708 | -8/Materials | Repaired Scythe 4884 | -8/Materials | Discovered new exit (range 8) 5584 | -8/Materials | Discovered new exit (range 16) 5746 | -8/Materials | Build established: Tank 5791 | -8/Materials | Repaired Hrd. Medium Armor Plating 6176 | -8/Materials | Garrison activated, responded to threat 6245 | -8/Materials | Core integrity fell below 50% 6319 | -8/Materials | Self-destructed Last Messages --------------- 06269_ Destroyed Lgt. Deuterium Engine. 06269_ U-05 Engineer destroyed. 06269_ K-01 Serf destroyed. 06271_ Destroyed Imp. Hover Unit. 06271_ >> Machine Analyzer network decryption results: 06271_ Terminal x3 06274_ R-06 Scavenger sends out distress signal. 06275_ Critical hit (Burn: +37). 06275_ Destroyed Imp. Sensor Array. 06275_ W-25 Informer destroyed. 06277_ Acquired 17 matter. 06279_ Imp. Treads destroyed. 06287_ Arm. Treads destroyed. 06291_ Hrd. Medium Armor Plating destroyed. 06300_ G-47 Trooper destroyed. 06302_ Acquired 9 matter. 06304_ Critical hit (Burn: +37). 06305_ W-25 Informer sends out distress signal. 06313_ Imp. Assault Rifle destroyed. 06317_ G-47 Trooper destroyed. Map ----- +----------------------------------------------------+ | ########+####??# ##################??????????? | | ##### ####### ##???????????????????????????? | | + # # #????????????????????????????? | | ##### # # #????????????????????????????? | | #???# + # ##???????????????????????????? | | #???# # # ##???????????????????????????? | | #???# ####### ##???????????????????????????? | | ####### ####### %%################+#???????????? | | ???????????? | | ??????????? | | *! ??????????? | | ###/################%= ??????????" | | # #????????#== ! """""?? ????????" | | # #????????#== """"""""" ???????" | | # #????????#/ """ """ ????????? | | # !#????????#! [% ???????? | | + ###??????#!! % % ??????? | | # ""#??????#!! ## # #??????? | | #### ""#??????##### ## #??????? | | ???# = T"#??????# ## ## !!]]//#??????? | | ???#[! ""#??????## ## #] [ !!]]//#??????? | | ???#[!! ""#???????# # [#] [ #???????? | | ???#!!! ###???????# #[g[##[ # ######????????? | | ???# #?????????# # g!##==#?### ?????????? | | ???#############???#### w%g][##??????""" #??????? | | #??# #?###### @# ##???????"""?????????? | | #??# #?####?# ########???"""?????????? | | ##?# """"" #?####?# ???????????????? | | ?+ """""""""o#?####?# ^ ?????""????????? | | #### """ """ #?####?# T """ #????""????????? | | ?# #?####?# """ #????T"???"T"??? | | ### ######?# """ #????""????????? | | #######+##+#### ### ?????""????????? | | #?????# ## ???????????????? | | #?????# ############ w * ???????????????? | | #?????# # T ## gg ???????????????? | | ##?????# #=! ## ???????????????? | | ######## #= """ ## #??????????????? | | # "" ## ########???????????????? | | + """ ## # #???????????????T | | ### ####### *## # #?""????????"""?? | | #?# #?????# !%# + """ #?"T????????"""?? | | ??# #?????# !## # """ #?""????????"""?? | | ###+################## # """ #???????????????? | | # ## ###### # #???????????"""?? | | #] ! = [ ## ########???????????"""?? | | # ## #????# ???????????"""?? | | # """ ## #????# ???????????????? | | / """"" ## ####### #????# ???????????????? | | # """"" ####+#####???# #????# ???????????????? | +----------------------------------------------------+ Best States ------------- Heat Dissipation 47 Energy Generation 18 Energy Capacity 290 Matter Stores 300 Matter Capacity 300 Sight Range 18 Terrain Scan Density 10 Armor Coverage 450 Evasion (%) 40 Recoil Reduction 3 Item Schematics ----------------- Lrg. Storage Unit | -10/Materials | Hacked Mni. Grenade Launcher | -9/Storage | Hacked Hacking Suite | -9/Storage | Hacked Cooling System | -9/Storage | Hacked Robot Schematics ------------------ None Fabricated ------------ Nothing Alien Tech Used ----------------- None Achievements -------------- None Challenges ------------ None Game ------ Seed MyomerFortressChronowheel Manual? 0 Play Time 00:43:28 Cumulative 446.4 hours Start 2021.11.07 @ 01:15:16 End 2021.11.07 @ 02:04:54 Sessions 1 Manual Loads 0 Difficulty Rogue Special Mode None Game No. 446 Rogue 446 Adventurer 0 Explorer 0 Win Type - Total 8 Types 7/0/0/1/0/0/0/0/0 Lore% 80 Gallery% 92 Achievement% 69 Wizard Run 0 Options --------- ASCII 0 Keyboard 0 Movement Mouse Keybinds 1 Fullscreen 2 Font 24/Smallcaps Map View 76x50 Tactical HUD 1 Map Filters NONE Filters NONE Steam 1 RUN: dcb1da0c-c108-417e-b49d-2c12dfe0d9b8